[Event "*** Titled Tuesday Blitz"]
[Site "Chess.com"]
[Date "2021.03.09"]
[Round "2"]
[White "Caracternin123"]
[Black "andrewtnb"]
[Result "0-1"]
[WhiteElo "2573"]
[BlackElo "2325"]
[TimeControl "180+1"]
[EndTime "10:17:43 PST"]
[Termination "andrewtnb won by checkmate"]

1. e4 {[%clk 0:03:00.9]} 1... c6 {[%clk 0:02:59.6]} 2. d4 {[%clk 0:03:00.6]}
2... d5 {[%clk 0:03:00.1]} 3. e5 {[%clk 0:03:00.7]} 3... c5 {[%clk 0:02:59.6]}
4. c3 {[%clk 0:03:01]} 4... cxd4 {[%clk 0:02:58.5]} 5. cxd4 {[%clk 0:03:01.2]}
5... Nc6 {[%clk 0:02:59.1]} 6. Nc3 {[%clk 0:03:01.2]} 6... Bf5 {[%clk
0:02:36.6]} 7. g4 {[%clk 0:02:57.1]} 7... Bc8 {[%clk 0:02:26.5]} 8. f4 {[%clk
0:02:56.1]} 8... h5 {[%clk 0:02:25.4]} 9. f5 {[%clk 0:02:39]} 9... hxg4 {[%clk
0:02:24.5]} 10. Qxg4 {[%clk 0:02:39.6]} 10... Nh6 {[%clk 0:02:11.5]} 11. Bxh6
{[%clk 0:02:38.4]} 11... Rxh6 {[%clk 0:02:11.7]} 12. Nge2 {[%clk 0:01:58]} 12...
g6 {[%clk 0:02:02.1]} 13. e6 {[%clk 0:01:57.3]} 13... gxf5 {[%clk 0:01:59.2]}
14. exf7+ {[%clk 0:01:55.9]} 14... Kxf7 {[%clk 0:01:59.1]} 15. Qf3 {[%clk
0:01:53.8]} 15... e6 {[%clk 0:01:46.4]} 16. O-O-O {[%clk 0:01:51.3]} 16... Bd7
{[%clk 0:01:35.5]} 17. Nf4 {[%clk 0:01:50.2]} 17... Qf6 {[%clk 0:01:33.8]} 18.
Bb5 {[%clk 0:01:46.6]} 18... Bd6 {[%clk 0:01:22.1]} 19. Ncxd5 {[%clk 0:01:23.2]}
19... exd5 {[%clk 0:01:20]} 20. Qxd5+ {[%clk 0:01:24.1]} 20... Kf8 {[%clk
0:01:19.5]} 21. Rdf1 {[%clk 0:01:00.1]} 21... Qxd4 {[%clk 0:01:06.6]} 22. Bxc6
{[%clk 0:00:59.8]} 22... Bxf4+ {[%clk 0:01:03.2]} 23. Kb1 {[%clk 0:00:55.4]}
23... Qxd5 {[%clk 0:01:00.9]} 24. Bxd5 {[%clk 0:00:56.3]} 24... Be5 {[%clk
0:00:49.9]} 25. Rhg1 {[%clk 0:00:56.3]} 25... Ke7 {[%clk 0:00:43]} 26. Re1
{[%clk 0:00:56.4]} 26... Kf6 {[%clk 0:00:40.4]} 27. Bxb7 {[%clk 0:00:55.4]}
27... Rb8 {[%clk 0:00:40]} 28. Ba6 {[%clk 0:00:52.7]} 28... Rxb2+ {[%clk
0:00:39.1]} 29. Kc1 {[%clk 0:00:53.2]} 29... Rhxh2 {[%clk 0:00:37.6]} 30. Rg8
{[%clk 0:00:46.7]} 30... Bf4+ {[%clk 0:00:36.8]} 31. Kd1 {[%clk 0:00:45.7]}
31... Rb1# {[%clk 0:00:36.8]} 0-1

[Event "*** Titled Tuesday Blitz"]
[Site "Chess.com"]
[Date "2021.03.09"]
[Round "2"]
[White "Handszar"]
[Black "Shahaliyev"]
[Result "0-1"]
[WhiteElo "2361"]
[BlackElo "2639"]
[TimeControl "180+1"]
[EndTime "10:17:55 PST"]
[Termination "Shahaliyev won on time"]

1. e4 {[%clk 0:03:00.9]} 1... e5 {[%clk 0:02:58.5]} 2. Nf3 {[%clk 0:02:59.5]}
2... Nc6 {[%clk 0:02:59]} 3. Bc4 {[%clk 0:02:57.8]} 3... Nf6 {[%clk 0:02:58.8]}
4. d4 {[%clk 0:02:54.3]} 4... exd4 {[%clk 0:02:53.7]} 5. e5 {[%clk 0:02:53.9]}
5... d5 {[%clk 0:02:53.9]} 6. Bb5 {[%clk 0:02:53.2]} 6... Ne4 {[%clk 0:02:52.8]}
7. Nxd4 {[%clk 0:02:51.8]} 7... Bd7 {[%clk 0:02:52.7]} 8. Bxc6 {[%clk
0:02:50.4]} 8... bxc6 {[%clk 0:02:53.6]} 9. O-O {[%clk 0:02:50.3]} 9... Bc5
{[%clk 0:02:52.1]} 10. f3 {[%clk 0:02:47.9]} 10... Ng5 {[%clk 0:02:48.6]} 11.
Nc3 {[%clk 0:02:48]} 11... O-O {[%clk 0:02:47.7]} 12. Be3 {[%clk 0:02:43.8]}
12... Rb8 {[%clk 0:02:36.7]} 13. Qd2 {[%clk 0:02:38.1]} 13... Ne6 {[%clk
0:02:36.8]} 14. Nxe6 {[%clk 0:02:32.2]} 14... Bxe3+ {[%clk 0:02:36.2]} 15. Qxe3
{[%clk 0:02:33.1]} 15... Bxe6 {[%clk 0:02:34]} 16. Na4 {[%clk 0:02:17.7]} 16...
d4 {[%clk 0:02:28.7]} 17. Qd2 {[%clk 0:02:09.4]} 17... Rb5 {[%clk 0:02:27]} 18.
f4 {[%clk 0:02:05.8]} 18... Bf5 {[%clk 0:02:24.8]} 19. Rad1 {[%clk 0:01:52.3]}
19... c5 {[%clk 0:02:23]} 20. c4 {[%clk 0:01:39.2]} 20... Rb4 {[%clk 0:02:18.2]}
21. Nxc5 {[%clk 0:00:42.3]} 21... Rxc4 {[%clk 0:02:17.8]} 22. Rc1 {[%clk
0:00:38.3]} 22... Qd5 {[%clk 0:02:13.1]} 23. Rxc4 {[%clk 0:00:35.2]} 23... Qxc4
{[%clk 0:02:14]} 24. Rc1 {[%clk 0:00:35.6]} 24... Qd5 {[%clk 0:02:11.1]} 25. b4
{[%clk 0:00:31.9]} 25... h5 {[%clk 0:02:00.9]} 26. h4 {[%clk 0:00:30]} 26... Rd8
{[%clk 0:01:57.4]} 27. a3 {[%clk 0:00:17.5]} 27... d3 {[%clk 0:01:53]} 28. Kh2
{[%clk 0:00:17.6]} 28... Kh7 {[%clk 0:01:42.5]} 29. Rc3 {[%clk 0:00:17.1]} 29...
Qd4 {[%clk 0:01:39.7]} 30. Nb3 {[%clk 0:00:16.6]} 30... Qe4 {[%clk 0:01:38.6]}
31. Rxc7 {[%clk 0:00:09.9]} 31... Be6 {[%clk 0:01:33.3]} 32. Rc3 {[%clk
0:00:05.6]} 32... Qe2 {[%clk 0:01:20.5]} 0-1

[Event "*** Titled Tuesday Blitz"]
[Site "Chess.com"]
[Date "2021.03.09"]
[Round "2"]
[White "bazar-wokzal"]
[Black "Homyakova_Elena"]
[Result "1-0"]
[WhiteElo "2474"]
[BlackElo "2259"]
[TimeControl "180+1"]
[EndTime "10:17:59 PST"]
[Termination "bazar-wokzal won on time"]

1. e4 {[%clk 0:03:00.9]} 1... c5 {[%clk 0:02:59.4]} 2. c3 {[%clk 0:02:59.5]}
2... d5 {[%clk 0:02:59]} 3. exd5 {[%clk 0:02:59.5]} 3... Qxd5 {[%clk 0:02:59.9]}
4. d4 {[%clk 0:03:00.2]} 4... Nc6 {[%clk 0:03:00.1]} 5. Nf3 {[%clk 0:02:47.5]}
5... Bg4 {[%clk 0:02:59.1]} 6. Be2 {[%clk 0:02:41.7]} 6... e6 {[%clk 0:02:59]}
7. h3 {[%clk 0:02:38.4]} 7... Bh5 {[%clk 0:02:58.6]} 8. c4 {[%clk 0:02:37.1]}
8... Qd7 {[%clk 0:02:40.9]} 9. g4 {[%clk 0:02:24.7]} 9... Bg6 {[%clk 0:02:38.1]}
10. d5 {[%clk 0:02:25.1]} 10... Nb4 {[%clk 0:02:22.3]} 11. Ne5 {[%clk
0:02:21.6]} 11... Qc7 {[%clk 0:01:56.9]} 12. Qa4+ {[%clk 0:02:20.3]} 12... Ke7
{[%clk 0:01:34.6]} 13. Nxg6+ {[%clk 0:02:16.9]} 13... hxg6 {[%clk 0:01:33.9]}
14. dxe6 {[%clk 0:02:16.5]} 14... fxe6 {[%clk 0:01:25.9]} 15. Nc3 {[%clk
0:02:05.6]} 15... Nf6 {[%clk 0:01:23]} 16. Be3 {[%clk 0:01:56.3]} 16... Kf7
{[%clk 0:01:19.4]} 17. O-O-O {[%clk 0:01:52.2]} 17... Be7 {[%clk 0:01:07.5]} 18.
a3 {[%clk 0:01:51.6]} 18... Nc6 {[%clk 0:01:04.7]} 19. Qc2 {[%clk 0:01:51]}
19... Rad8 {[%clk 0:01:00]} 20. Kb1 {[%clk 0:01:31.8]} 20... Rxd1+ {[%clk
0:00:49.8]} 21. Nxd1 {[%clk 0:01:21.2]} 21... Nd4 {[%clk 0:00:35.2]} 22. Bxd4
{[%clk 0:01:11.6]} 22... cxd4 {[%clk 0:00:36.1]} 23. Bd3 {[%clk 0:01:12]} 23...
Nxg4 {[%clk 0:00:29.7]} 24. Bxg6+ {[%clk 0:01:10.4]} 24... Kf8 {[%clk 0:00:28]}
25. Qe4 {[%clk 0:01:07]} 25... Nf6 {[%clk 0:00:19.9]} 26. Qxe6 {[%clk
0:01:05.5]} 26... Bd6 {[%clk 0:00:09.1]} 27. Re1 {[%clk 0:01:04.9]} 27... Qe7
{[%clk 0:00:04.3]} 28. Qc8+ {[%clk 0:01:02.7]} 1-0

[Event "*** Titled Tuesday Blitz"]
[Site "Chess.com"]
[Date "2021.03.09"]
[Round "2"]
[White "Manukyan_Artak"]
[Black "DonBroca"]
[Result "1-0"]
[WhiteElo "2410"]
[BlackElo "2156"]
[TimeControl "180+1"]
[EndTime "10:18:01 PST"]
[Termination "Manukyan_Artak won by resignation"]

1. e4 {[%clk 0:03:00.9]} 1... c5 {[%clk 0:02:58.4]} 2. Nf3 {[%clk 0:03:00.5]}
2... d6 {[%clk 0:02:48.9]} 3. Bb5+ {[%clk 0:02:59.9]} 3... Nd7 {[%clk
0:02:48.3]} 4. O-O {[%clk 0:02:59.1]} 4... g6 {[%clk 0:02:48.2]} 5. c3 {[%clk
0:02:58.5]} 5... Bg7 {[%clk 0:02:48.6]} 6. Re1 {[%clk 0:02:57.9]} 6... e6 {[%clk
0:02:38.5]} 7. d4 {[%clk 0:02:57.1]} 7... Ne7 {[%clk 0:02:34.5]} 8. Bf4 {[%clk
0:02:49.9]} 8... a6 {[%clk 0:02:24.3]} 9. Bf1 {[%clk 0:02:36.5]} 9... e5 {[%clk
0:02:23.4]} 10. dxe5 {[%clk 0:02:35.8]} 10... Nxe5 {[%clk 0:02:16.3]} 11. Nxe5
{[%clk 0:02:28]} 11... Bxe5 {[%clk 0:02:11.7]} 12. Bxe5 {[%clk 0:02:17.4]} 12...
dxe5 {[%clk 0:02:12.6]} 13. Qxd8+ {[%clk 0:02:15.7]} 13... Kxd8 {[%clk
0:02:13.5]} 14. Nd2 {[%clk 0:02:10.8]} 14... Kc7 {[%clk 0:01:50.3]} 15. a4
{[%clk 0:02:07]} 15... Rd8 {[%clk 0:01:37.1]} 16. Nb3 {[%clk 0:01:58.2]} 16...
Kb6 {[%clk 0:01:18.5]} 17. a5+ {[%clk 0:01:57.6]} 17... Kc6 {[%clk 0:01:09.9]}
18. Bc4 {[%clk 0:01:56.6]} 18... f6 {[%clk 0:00:55.6]} 19. Red1 {[%clk
0:01:52.2]} 19... Bd7 {[%clk 0:00:38]} 20. f3 {[%clk 0:01:43.5]} 20... Nc8
{[%clk 0:00:32.2]} 21. Bd5+ {[%clk 0:01:41.8]} 21... Kb5 {[%clk 0:00:20.5]} 22.
Bxb7 {[%clk 0:01:32]} 22... Rb8 {[%clk 0:00:20.2]} 23. Bxa6+ {[%clk 0:01:13.5]}
23... Kxa6 {[%clk 0:00:16.4]} 24. Nxc5+ {[%clk 0:01:14.1]} 24... Ka7 {[%clk
0:00:12.2]} 25. b4 {[%clk 0:01:05.6]} 25... Ne7 {[%clk 0:00:07.5]} 26. Nxd7
{[%clk 0:01:02.5]} 26... Rbc8 {[%clk 0:00:06.8]} 27. Nc5 {[%clk 0:00:59]} 27...
Nc6 {[%clk 0:00:05.9]} 28. Kf2 {[%clk 0:00:56.5]} 28... Rxd1 {[%clk 0:00:04.8]}
29. Rxd1 {[%clk 0:00:56]} 1-0

[Event "*** Titled Tuesday Blitz"]
[Site "Chess.com"]
[Date "2021.03.09"]
[Round "2"]
[White "cukin84"]
[Black "MrrRefrao"]
[Result "0-1"]
[WhiteElo "2110"]
[BlackElo "2404"]
[TimeControl "180+1"]
[EndTime "10:18:01 PST"]
[Termination "MrrRefrao won by resignation"]

1. e4 {[%clk 0:03:00.9]} 1... c5 {[%clk 0:02:57.9]} 2. Nc3 {[%clk 0:03:00.2]}
2... d6 {[%clk 0:02:56.7]} 3. f4 {[%clk 0:02:59.6]} 3... g6 {[%clk 0:02:49.5]}
4. Nf3 {[%clk 0:02:59.4]} 4... Bg7 {[%clk 0:02:49.8]} 5. g3 {[%clk 0:02:59.2]}
5... Nc6 {[%clk 0:02:48.7]} 6. Bg2 {[%clk 0:02:59.2]} 6... e6 {[%clk 0:02:45.8]}
7. O-O {[%clk 0:02:59.4]} 7... Nge7 {[%clk 0:02:35.2]} 8. d3 {[%clk 0:02:58.3]}
8... O-O {[%clk 0:02:33.2]} 9. Qe1 {[%clk 0:02:58.5]} 9... b6 {[%clk 0:02:14.9]}
10. h3 {[%clk 0:02:55.6]} 10... Qd7 {[%clk 0:02:06.9]} 11. g4 {[%clk 0:02:55]}
11... f5 {[%clk 0:01:54.1]} 12. exf5 {[%clk 0:02:40.5]} 12... exf5 {[%clk
0:01:50.1]} 13. Ng5 {[%clk 0:02:32.6]} 13... h6 {[%clk 0:01:30.4]} 14. Nf3
{[%clk 0:02:19.5]} 14... fxg4 {[%clk 0:01:28.9]} 15. Nd2 {[%clk 0:02:13.9]}
15... gxh3 {[%clk 0:01:26.3]} 16. Be4 {[%clk 0:02:12.2]} 16... d5 {[%clk
0:01:24.4]} 17. Bh1 {[%clk 0:02:01.6]} 17... Nd4 {[%clk 0:01:06.6]} 18. Qd1
{[%clk 0:01:46]} 18... Bb7 {[%clk 0:01:05.4]} 19. Nf3 {[%clk 0:01:42.7]} 19...
Nef5 {[%clk 0:01:00.6]} 20. Kh2 {[%clk 0:01:29.2]} 20... Rae8 {[%clk 0:00:58.5]}
21. Rg1 {[%clk 0:01:20.2]} 21... Qd6 {[%clk 0:00:43.5]} 22. Qf1 {[%clk
0:01:08.4]} 22... Nxc2 {[%clk 0:00:39.7]} 23. Bd2 {[%clk 0:00:56.6]} 23... Nxa1
{[%clk 0:00:38.7]} 24. Qxa1 {[%clk 0:00:55.7]} 24... Ne3 {[%clk 0:00:37.7]} 25.
Kxh3 {[%clk 0:00:32]} 25... Qxf4 {[%clk 0:00:35.9]} 26. Qe1 {[%clk 0:00:24.4]}
26... Bc8+ {[%clk 0:00:36.8]} 0-1

[Event "*** Titled Tuesday Blitz"]
[Site "Chess.com"]
[Date "2021.03.09"]
[Round "2"]
[White "rpragchess"]
[Black "SlavenPastar"]
[Result "1-0"]
[WhiteElo "2909"]
[BlackElo "2563"]
[TimeControl "180+1"]
[EndTime "10:18:03 PST"]
[Termination "rpragchess won on time"]

1. c4 {[%clk 0:02:59.9]} 1... b6 {[%clk 0:02:57.1]} 2. d4 {[%clk 0:02:54.5]}
2... Bb7 {[%clk 0:02:57]} 3. Nc3 {[%clk 0:02:54.3]} 3... e6 {[%clk 0:02:54]} 4.
a3 {[%clk 0:02:54.4]} 4... Nf6 {[%clk 0:02:50]} 5. d5 {[%clk 0:02:53.4]} 5...
exd5 {[%clk 0:02:45.7]} 6. cxd5 {[%clk 0:02:52.9]} 6... Bd6 {[%clk 0:02:44.8]}
7. Nf3 {[%clk 0:02:52.9]} 7... O-O {[%clk 0:02:44.8]} 8. g3 {[%clk 0:02:53.2]}
8... Re8 {[%clk 0:02:43.2]} 9. Bg2 {[%clk 0:02:52.1]} 9... Bf8 {[%clk 0:02:42]}
10. O-O {[%clk 0:02:50.5]} 10... d6 {[%clk 0:02:42.5]} 11. Nd4 {[%clk
0:02:40.8]} 11... Qd7 {[%clk 0:02:25.8]} 12. Bg5 {[%clk 0:02:34.7]} 12... Be7
{[%clk 0:02:18.6]} 13. Qd2 {[%clk 0:02:24.8]} 13... a5 {[%clk 0:02:13.5]} 14.
Rab1 {[%clk 0:01:44]} 14... Ng4 {[%clk 0:02:03.3]} 15. Bh3 {[%clk 0:01:32.8]}
15... h5 {[%clk 0:01:37.9]} 16. f3 {[%clk 0:01:16.9]} 16... Bxg5 {[%clk
0:01:36.5]} 17. Qxg5 {[%clk 0:01:15.8]} 17... Re5 {[%clk 0:01:07.2]} 18. Qf4
{[%clk 0:01:01.2]} 18... c5 {[%clk 0:00:08.4]} 19. Ndb5 {[%clk 0:00:35]} 1-0

[Event "*** Titled Tuesday Blitz"]
[Site "Chess.com"]
[Date "2021.03.09"]
[Round "2"]
[White "sofaceindisguise"]
[Black "Michaelson_11"]
[Result "1-0"]
[WhiteElo "2581"]
[BlackElo "2284"]
[TimeControl "180+1"]
[EndTime "10:18:03 PST"]
[Termination "sofaceindisguise won by checkmate"]

1. e4 {[%clk 0:03:00.9]} 1... e6 {[%clk 0:02:57.9]} 2. d4 {[%clk 0:02:57.7]}
2... d5 {[%clk 0:02:58.8]} 3. Nc3 {[%clk 0:02:57.8]} 3... Bb4 {[%clk 0:02:58]}
4. e5 {[%clk 0:02:58]} 4... c5 {[%clk 0:02:57.8]} 5. Bd2 {[%clk 0:02:58.4]} 5...
Nc6 {[%clk 0:02:47.8]} 6. Nb5 {[%clk 0:02:57.1]} 6... Qa5 {[%clk 0:02:13.6]} 7.
Nd6+ {[%clk 0:02:49.5]} 7... Ke7 {[%clk 0:02:06.5]} 8. c3 {[%clk 0:02:45]} 8...
cxd4 {[%clk 0:01:52.5]} 9. cxb4 {[%clk 0:02:33.1]} 9... Qb6 {[%clk 0:01:49]} 10.
f4 {[%clk 0:02:13.7]} 10... f6 {[%clk 0:01:35.5]} 11. Nf3 {[%clk 0:02:11.9]}
11... Nh6 {[%clk 0:01:19.8]} 12. Bd3 {[%clk 0:02:03.2]} 12... Ng4 {[%clk
0:00:50.9]} 13. O-O {[%clk 0:01:58.7]} 13... fxe5 {[%clk 0:00:44.8]} 14. fxe5
{[%clk 0:01:56.5]} 14... Ncxe5 {[%clk 0:00:42.6]} 15. Nxe5 {[%clk 0:01:51.7]}
15... Nxe5 {[%clk 0:00:43.5]} 16. Nxc8+ {[%clk 0:01:48.9]} 16... Raxc8 {[%clk
0:00:42.9]} 17. Bf4 {[%clk 0:01:45.5]} 17... Nf7 {[%clk 0:00:30.9]} 18. Qd2
{[%clk 0:01:39.9]} 18... e5 {[%clk 0:00:25]} 19. Rae1 {[%clk 0:01:40]} 19... Kd6
{[%clk 0:00:24.3]} 20. Bxe5+ {[%clk 0:01:27.3]} 20... Nxe5 {[%clk 0:00:23.6]}
21. Rxe5 {[%clk 0:01:27.6]} 21... Kxe5 {[%clk 0:00:05.5]} 22. Qf4+ {[%clk
0:00:55.1]} 22... Ke6 {[%clk 0:00:05.6]} 23. Re1+ {[%clk 0:00:52.1]} 23... Kd7
{[%clk 0:00:05.2]} 24. Qf7+ {[%clk 0:00:49.6]} 24... Kc6 {[%clk 0:00:03.9]} 25.
Re6# {[%clk 0:00:46.7]} 1-0

[Event "*** Titled Tuesday Blitz"]
[Site "Chess.com"]
[Date "2021.03.09"]
[Round "2"]
[White "LionChessClub"]
[Black "Etud-otradnoe"]
[Result "1-0"]
[WhiteElo "2603"]
[BlackElo "2316"]
[TimeControl "180+1"]
[EndTime "10:18:03 PST"]
[Termination "LionChessClub won on time"]

1. e4 {[%clk 0:03:00.9]} 1... e6 {[%clk 0:02:59.7]} 2. d4 {[%clk 0:02:57.9]}
2... d5 {[%clk 0:02:59.3]} 3. Nd2 {[%clk 0:02:54.1]} 3... Nf6 {[%clk 0:02:58.1]}
4. e5 {[%clk 0:02:50.4]} 4... Nfd7 {[%clk 0:02:57.9]} 5. Bd3 {[%clk 0:02:50.5]}
5... c5 {[%clk 0:02:57.5]} 6. c3 {[%clk 0:02:50.3]} 6... b6 {[%clk 0:02:57.5]}
7. f4 {[%clk 0:02:33.2]} 7... Ba6 {[%clk 0:02:51]} 8. Bxa6 {[%clk 0:02:33.3]}
8... Nxa6 {[%clk 0:02:50.9]} 9. Ngf3 {[%clk 0:02:34.2]} 9... Nc7 {[%clk
0:02:50.3]} 10. O-O {[%clk 0:02:34.1]} 10... f5 {[%clk 0:02:33.1]} 11. exf6
{[%clk 0:02:27.2]} 11... Nxf6 {[%clk 0:02:29.4]} 12. Re1 {[%clk 0:02:27.4]}
12... Bd6 {[%clk 0:02:27.1]} 13. f5 {[%clk 0:02:02.8]} 13... O-O {[%clk
0:02:21.2]} 14. fxe6 {[%clk 0:02:02.8]} 14... Re8 {[%clk 0:02:17]} 15. Ne5
{[%clk 0:01:54.1]} 15... Nxe6 {[%clk 0:02:06.5]} 16. Ndf3 {[%clk 0:01:54]} 16...
Ne4 {[%clk 0:01:58.1]} 17. Qb3 {[%clk 0:01:53.4]} 17... c4 {[%clk 0:01:51.5]}
18. Qc2 {[%clk 0:01:51.6]} 18... Qc7 {[%clk 0:01:25.7]} 19. Rxe4 {[%clk
0:01:39.7]} 19... dxe4 {[%clk 0:01:25.1]} 20. Qxe4 {[%clk 0:01:40.6]} 20... Rad8
{[%clk 0:01:00.5]} 21. Bd2 {[%clk 0:01:37.3]} 21... Kh8 {[%clk 0:00:18.6]} 22.
Rf1 {[%clk 0:01:35.2]} 22... Nc5 {[%clk 0:00:10.2]} 23. Qh4 {[%clk 0:01:26.8]}
23... Nd3 {[%clk 0:00:07.1]} 24. Ng5 {[%clk 0:01:26]} 24... h6 {[%clk
0:00:04.9]} 25. Ngf7+ {[%clk 0:01:25]} 25... Kh7 {[%clk 0:00:02.8]} 26. Ng5+
{[%clk 0:01:24.1]} 26... Kh8 {[%clk 0:00:02.5]} 27. Ngf7+ {[%clk 0:01:21.9]}
27... Kh7 {[%clk 0:00:02.7]} 28. Nxd8 {[%clk 0:01:22.8]} 28... Nxe5 {[%clk
0:00:01.1]} 29. dxe5 {[%clk 0:01:20]} 29... Bc5+ {[%clk 0:00:01.1]} 30. Kh1
{[%clk 0:01:17.6]} 30... Qxd8 {[%clk 0:00:01]} 31. Qe4+ {[%clk 0:01:18.3]} 31...
Kh8 {[%clk 0:00:01.1]} 32. Bf4 {[%clk 0:01:16.3]} 1-0

[Event "*** Titled Tuesday Blitz"]
[Site "Chess.com"]
[Date "2021.03.09"]
[Round "2"]
[White "Hikaru"]
[Black "francyIM"]
[Result "1-0"]
[WhiteElo "3172"]
[BlackElo "2595"]
[TimeControl "180+1"]
[EndTime "10:18:05 PST"]
[Termination "Hikaru won by resignation"]

1. Nf3 {[%clk 0:03:00.9]} 1... d5 {[%clk 0:02:59.8]} 2. e3 {[%clk 0:03:00.6]}
2... e6 {[%clk 0:02:59.8]} 3. c4 {[%clk 0:03:00.6]} 3... Nf6 {[%clk 0:03:00.2]}
4. Nc3 {[%clk 0:03:00.4]} 4... b6 {[%clk 0:02:58]} 5. d4 {[%clk 0:03:00.2]} 5...
Bb7 {[%clk 0:02:57]} 6. cxd5 {[%clk 0:03:00.6]} 6... exd5 {[%clk 0:02:57.1]} 7.
Ne5 {[%clk 0:03:00.9]} 7... Bd6 {[%clk 0:02:57]} 8. Bd3 {[%clk 0:03:00.4]} 8...
O-O {[%clk 0:02:56.9]} 9. O-O {[%clk 0:02:59.1]} 9... c5 {[%clk 0:02:47.7]} 10.
f4 {[%clk 0:02:58.3]} 10... Nc6 {[%clk 0:02:47.6]} 11. Ne2 {[%clk 0:02:58]}
11... Ne4 {[%clk 0:02:42.9]} 12. Bd2 {[%clk 0:02:53.1]} 12... f6 {[%clk
0:02:39.4]} 13. Bxe4 {[%clk 0:02:34.2]} 13... Bxe5 {[%clk 0:02:24.4]} 14. fxe5
{[%clk 0:02:13.4]} 14... dxe4 {[%clk 0:02:23.6]} 15. exf6 {[%clk 0:02:13.9]}
15... Rxf6 {[%clk 0:02:21.4]} 16. Rxf6 {[%clk 0:02:13.8]} 16... Qxf6 {[%clk
0:02:21]} 17. dxc5 {[%clk 0:02:14.3]} 17... Rd8 {[%clk 0:02:18]} 18. Qc2 {[%clk
0:02:05.5]} 18... bxc5 {[%clk 0:02:07.8]} 19. Bc3 {[%clk 0:02:03.3]} 19... Qe7
{[%clk 0:02:04]} 20. Qb3+ {[%clk 0:01:57.5]} 20... Kh8 {[%clk 0:02:03.3]} 21.
Nf4 {[%clk 0:01:53.9]} 21... Rd7 {[%clk 0:01:12.9]} 22. Ne6 {[%clk 0:01:44.1]}
22... h6 {[%clk 0:00:18.6]} 23. Nxg7 {[%clk 0:01:39.6]} 23... Kh7 {[%clk
0:00:17.3]} 24. Nh5 {[%clk 0:01:25.3]} 24... Nd4 {[%clk 0:00:10]} 25. exd4
{[%clk 0:01:21.8]} 25... cxd4 {[%clk 0:00:10.9]} 26. Bb4 {[%clk 0:01:20.2]}
26... Qe5 {[%clk 0:00:07.9]} 27. Qh3 {[%clk 0:01:13]} 27... Rf7 {[%clk
0:00:07.1]} 28. Rf1 {[%clk 0:00:56.4]} 28... Rxf1+ {[%clk 0:00:06.3]} 29. Kxf1
{[%clk 0:00:57.3]} 29... Qb5+ {[%clk 0:00:06.7]} 30. Kg1 {[%clk 0:00:57.8]}
30... Qxb4 {[%clk 0:00:06.7]} 31. Qf5+ {[%clk 0:00:57.9]} 31... Kg8 {[%clk
0:00:06.3]} 32. Qg6+ {[%clk 0:00:58.1]} 32... Kf8 {[%clk 0:00:06.7]} 33. Qg7+
{[%clk 0:00:59]} 33... Ke8 {[%clk 0:00:07.3]} 34. Nf6+ {[%clk 0:00:59.9]} 1-0

[Event "*** Titled Tuesday Blitz"]
[Site "Chess.com"]
[Date "2021.03.09"]
[Round "2"]
[White "esapunov"]
[Black "KingCyber19"]
[Result "1-0"]
[WhiteElo "2755"]
[BlackElo "2510"]
[TimeControl "180+1"]
[EndTime "10:18:05 PST"]
[Termination "esapunov won by checkmate"]

1. c4 {[%clk 0:03:00.9]} 1... c5 {[%clk 0:02:58.9]} 2. Nf3 {[%clk 0:03:00.5]}
2... Nf6 {[%clk 0:02:58.7]} 3. Nc3 {[%clk 0:03:00.6]} 3... Nc6 {[%clk
0:02:58.8]} 4. e3 {[%clk 0:03:00.8]} 4... e5 {[%clk 0:02:53.6]} 5. d4 {[%clk
0:03:01]} 5... exd4 {[%clk 0:02:53.1]} 6. exd4 {[%clk 0:03:01.2]} 6... d5 {[%clk
0:02:52.6]} 7. dxc5 {[%clk 0:02:57.9]} 7... d4 {[%clk 0:02:47.9]} 8. Na4 {[%clk
0:02:57.6]} 8... Be6 {[%clk 0:02:44.5]} 9. a3 {[%clk 0:02:50.3]} 9... Be7 {[%clk
0:02:40.3]} 10. Bd3 {[%clk 0:02:49.5]} 10... O-O {[%clk 0:02:39]} 11. h3 {[%clk
0:02:49.8]} 11... Re8 {[%clk 0:02:30.8]} 12. O-O {[%clk 0:02:49.1]} 12... h6
{[%clk 0:02:29.3]} 13. b4 {[%clk 0:02:47.1]} 13... a6 {[%clk 0:02:28.3]} 14. Re1
{[%clk 0:02:44.2]} 14... Qc7 {[%clk 0:02:16.2]} 15. Nb6 {[%clk 0:02:35.9]} 15...
Rad8 {[%clk 0:02:16.1]} 16. Ra2 {[%clk 0:02:33.7]} 16... a5 {[%clk 0:02:11.1]}
17. Bd2 {[%clk 0:02:20.3]} 17... Nb8 {[%clk 0:02:04.6]} 18. Ne5 {[%clk
0:02:08.2]} 18... Na6 {[%clk 0:02:03.4]} 19. Rb2 {[%clk 0:02:02.2]} 19... Bf8
{[%clk 0:01:49.2]} 20. Bf4 {[%clk 0:02:01]} 20... Qe7 {[%clk 0:01:33.7]} 21. Bh2
{[%clk 0:01:39.1]} 21... g6 {[%clk 0:01:06]} 22. Qb3 {[%clk 0:01:35.9]} 22...
Bg7 {[%clk 0:01:00.9]} 23. Rbe2 {[%clk 0:01:36]} 23... Qf8 {[%clk 0:00:57.7]}
24. Nxg6 {[%clk 0:01:32.5]} 24... fxg6 {[%clk 0:00:42.2]} 25. Rxe6 {[%clk
0:01:31.9]} 25... Rxe6 {[%clk 0:00:41]} 26. Rxe6 {[%clk 0:01:32]} 26... Nh5
{[%clk 0:00:37.8]} 27. Nd5 {[%clk 0:01:27.6]} 27... g5 {[%clk 0:00:25.8]} 28.
Qd1 {[%clk 0:01:25.8]} 28... Qf7 {[%clk 0:00:20.7]} 29. Qe2 {[%clk 0:01:21.5]}
29... Nf4 {[%clk 0:00:19.3]} 30. Bxf4 {[%clk 0:01:20.8]} 30... gxf4 {[%clk
0:00:20.2]} 31. Bg6 {[%clk 0:01:16.5]} 31... Qf8 {[%clk 0:00:20.4]} 32. Qg4
{[%clk 0:01:15.8]} 32... axb4 {[%clk 0:00:19.3]} 33. axb4 {[%clk 0:01:15.5]}
33... Kh8 {[%clk 0:00:14.1]} 34. Bd3 {[%clk 0:01:13.7]} 34... Qf7 {[%clk
0:00:10.5]} 35. Re7 {[%clk 0:01:13]} 35... Qf8 {[%clk 0:00:08.7]} 36. Qg6 {[%clk
0:01:12.6]} 36... Rxd5 {[%clk 0:00:08.3]} 37. Qh7# {[%clk 0:01:11.9]} 1-0